[Event "Titled Tuesday Blitz May 16 Late 2023"]
[White "Pichot, Alan"]
[Black "Schmakel, Sam"]
[WhiteFideId "110973"]
[BlackFideId "2039311"]
[WhiteElo "2573"]
[BlackElo "2356"]
[Result "1-0"]
[Round "04"]
[TimeControl "180+2"]
[Date "2023.05.16"]
[WhiteClock "0:00:27"]
[BlackClock "0:00:17"]

1. e4 {[%clk 0:03:00]}  g6 {[%clk 0:03:00]} 2. d4 {[%clk 0:03:00]}  Bg7 {[%clk 0:03:00]} 3. Nf3 {[%clk 0:02:58]}  d6 {[%clk 0:03:00]} 4. Bc4 {[%clk 0:02:58]}  Nf6 {[%clk 0:03:01]} 5. Qe2 {[%clk 0:02:58]}  O-O {[%clk 0:03:00]} 6. O-O {[%clk 0:02:55]}  Nc6 {[%clk 0:03:00]} 7. c3 {[%clk 0:02:52]}  Nh5 {[%clk 0:03:01]} 8. e5 {[%clk 0:02:27]}  dxe5 {[%clk 0:02:55]} 9. Nxe5 {[%clk 0:02:27]}  Bd7 {[%clk 0:02:27]} 10. f4 {[%clk 0:02:02]}  Nf6 {[%clk 0:02:22]} 11. Be3 {[%clk 0:02:00]}  Nxe5 {[%clk 0:02:10]} 12. dxe5 {[%clk 0:01:59]}  Bg4 {[%clk 0:02:10]} 13. Qd2 {[%clk 0:01:48]}  Nh5 {[%clk 0:01:26]} 14. Qxd8 {[%clk 0:01:32]}  Raxd8 {[%clk 0:01:25]} 15. Nd2 {[%clk 0:01:33]}  g5 {[%clk 0:01:15]} 16. fxg5 {[%clk 0:01:23]}  Bxe5 {[%clk 0:01:13]} 17. Nf3 {[%clk 0:01:16]}  Bd6 {[%clk 0:00:49]} 18. h3 {[%clk 0:01:13]}  Bc8 {[%clk 0:00:45]} 19. Nd4 {[%clk 0:01:09]}  Ng3 {[%clk 0:00:38]} 20. Rf3 {[%clk 0:01:07]}  a6 {[%clk 0:00:37]} 21. Re1 {[%clk 0:00:58]}  c5 {[%clk 0:00:30]} 22. Ne2 {[%clk 0:00:55]}  Nf5 {[%clk 0:00:30]} 23. Bf4 {[%clk 0:00:52]}  b5 {[%clk 0:00:30]} 24. Bd3 {[%clk 0:00:51]}  c4 {[%clk 0:00:22]} 25. Bxf5 {[%clk 0:00:49]}  Bc5+ {[%clk 0:00:23]} 26. Be3 {[%clk 0:00:49]}  Bxe3+ {[%clk 0:00:23]} 27. Rxe3 {[%clk 0:00:50]}  Bxf5 {[%clk 0:00:23]} 28. Rxe7 {[%clk 0:00:48]}  Rd2 {[%clk 0:00:23]} 29. Nd4 {[%clk 0:00:38]}  Bd3 {[%clk 0:00:23]} 30. Ra7 {[%clk 0:00:32]}  Rxb2 {[%clk 0:00:21]} 31. Rxa6 {[%clk 0:00:33]}  Rd8 {[%clk 0:00:21]} 32. Nc6 {[%clk 0:00:27]}  Rd6 {[%clk 0:00:19]} 33. Ne7+ {[%clk 0:00:26]}  Kg7 {[%clk 0:00:17]} 34. Rxd6 {[%clk 0:00:27]} 1-0


[Site "https://www.chess.com"]

[Event "Titled Tuesday Blitz May 16 Late 2023"]
[White "Bryakin, Mikhail"]
[Black "Durarbayli, Vasif"]
[WhiteFideId "4165314"]
[BlackFideId "13402935"]
[WhiteElo "2467"]
[BlackElo "2551"]
[Result "0-1"]
[Round "04"]
[TimeControl "180+2"]
[Date "2023.05.16"]
[WhiteClock "0:00:00"]
[BlackClock "0:00:09"]

1. c4 {[%clk 0:03:00]}  c5 {[%clk 0:02:59]} 2. Nf3 {[%clk 0:02:56]}  Nf6 {[%clk 0:02:57]} 3. Nc3 {[%clk 0:02:51]}  e6 {[%clk 0:02:57]} 4. d4 {[%clk 0:02:50]}  cxd4 {[%clk 0:02:56]} 5. Nxd4 {[%clk 0:02:50]}  Bb4 {[%clk 0:02:50]} 6. Qb3 {[%clk 0:02:42]}  Bc5 {[%clk 0:02:30]} 7. e3 {[%clk 0:02:41]}  Nc6 {[%clk 0:02:29]} 8. Nf3 {[%clk 0:02:34]}  O-O {[%clk 0:02:15]} 9. Be2 {[%clk 0:02:34]}  d5 {[%clk 0:02:09]} 10. cxd5 {[%clk 0:02:33]}  exd5 {[%clk 0:02:09]} 11. Nb5 {[%clk 0:02:31]}  Bb4+ {[%clk 0:01:51]} 12. Bd2 {[%clk 0:02:21]}  Bxd2+ {[%clk 0:01:49]} 13. Nxd2 {[%clk 0:02:22]}  d4 {[%clk 0:01:49]} 14. exd4 {[%clk 0:02:06]}  Nxd4 {[%clk 0:01:50]} 15. Nxd4 {[%clk 0:02:06]}  Qxd4 {[%clk 0:01:50]} 16. Nf3 {[%clk 0:01:47]}  Qe4 {[%clk 0:01:48]} 17. Qc4 {[%clk 0:01:40]}  Qxc4 {[%clk 0:01:15]} 18. Bxc4 {[%clk 0:01:41]}  Re8+ {[%clk 0:01:15]} 19. Kf1 {[%clk 0:01:33]}  Bg4 {[%clk 0:01:02]} 20. h3 {[%clk 0:01:33]}  Bxf3 {[%clk 0:00:58]} 21. gxf3 {[%clk 0:01:34]}  Rac8 {[%clk 0:00:58]} 22. b3 {[%clk 0:01:34]}  Rc5 {[%clk 0:00:49]} 23. Re1 {[%clk 0:01:30]}  b5 {[%clk 0:00:23]} 24. Rxe8+ {[%clk 0:01:25]}  Nxe8 {[%clk 0:00:24]} 25. Bd3 {[%clk 0:01:21]}  Rc1+ {[%clk 0:00:23]} 26. Kg2 {[%clk 0:01:22]}  Rxh1 {[%clk 0:00:23]} 27. Kxh1 {[%clk 0:01:23]}  b4 {[%clk 0:00:22]} 28. f4 {[%clk 0:01:23]}  Nf6 {[%clk 0:00:17]} 29. Kg2 {[%clk 0:01:22]}  Nd5 {[%clk 0:00:17]} 30. Kf3 {[%clk 0:01:22]}  Nc3 {[%clk 0:00:18]} 31. Ke3 {[%clk 0:01:22]}  Nxa2 {[%clk 0:00:18]} 32. Kd4 {[%clk 0:01:23]}  Kf8 {[%clk 0:00:17]} 33. Kc5 {[%clk 0:01:18]}  Ke7 {[%clk 0:00:15]} 34. Bc4 {[%clk 0:01:12]}  Kf6 {[%clk 0:00:10]} 35. Bd3 {[%clk 0:00:48]}  h6 {[%clk 0:00:10]} 36. Kc4 {[%clk 0:00:36]}  Ke6 {[%clk 0:00:07]} 37. Bc2 {[%clk 0:00:31]}  Kd6 {[%clk 0:00:07]} 38. Bd3 {[%clk 0:00:18]}  Kc6 {[%clk 0:00:06]} 39. Be4+ {[%clk 0:00:19]}  Kd6 {[%clk 0:00:07]} 40. Bc2 {[%clk 0:00:17]}  a5 {[%clk 0:00:05]} 41. Kb5 {[%clk 0:00:16]}  Nc3+ {[%clk 0:00:05]} 42. Kxa5 {[%clk 0:00:16]}  Kc5 {[%clk 0:00:06]} 43. f5 {[%clk 0:00:09]}  Ne2 {[%clk 0:00:05]} 44. f6 {[%clk 0:00:06]}  gxf6 {[%clk 0:00:04]} 45. Bd1 {[%clk 0:00:07]}  Nd4 {[%clk 0:00:04]} 46. Ka4 {[%clk 0:00:05]}  f5 {[%clk 0:00:05]} 47. Bh5 {[%clk 0:00:04]}  f6 {[%clk 0:00:05]} 48. Bg6 {[%clk 0:00:05]}  f4 {[%clk 0:00:06]} 49. Be4 {[%clk 0:00:05]}  Nb5 {[%clk 0:00:06]} 50. Bf3 {[%clk 0:00:05]}  Nd4 {[%clk 0:00:07]} 51. Be4 {[%clk 0:00:05]}  Nb5 {[%clk 0:00:07]} 52. Bf3 {[%clk 0:00:05]}  Nc3+ {[%clk 0:00:06]} 53. Ka5 {[%clk 0:00:05]}  Nb1 {[%clk 0:00:07]} 54. Ka4 {[%clk 0:00:05]}  Nd2 {[%clk 0:00:08]} 55. Be2 {[%clk 0:00:05]}  f3 {[%clk 0:00:07]} 56. Bd3 {[%clk 0:00:05]}  Kd4 {[%clk 0:00:07]} 57. Bf5 {[%clk 0:00:04]}  Kc3 {[%clk 0:00:08]} 58. Bg4 {[%clk 0:00:04]}  Nxb3 {[%clk 0:00:07]} 59. Bxf3 {[%clk 0:00:05]}  Nc5+ {[%clk 0:00:07]} 60. Kb5 {[%clk 0:00:05]}  Nd3 {[%clk 0:00:08]} 61. Bd1 {[%clk 0:00:03]}  Nxf2 {[%clk 0:00:09]} 62. Be2 {[%clk 0:00:00]}  Nxh3 {[%clk 0:00:09]} 0-1


[Site "https://www.chess.com"]

[Event "Titled Tuesday Blitz May 16 Late 2023"]
[White "Smirnov, Pavel"]
[Black "Svane, Frederik"]
[WhiteFideId "4123425"]
[BlackFideId "12923044"]
[WhiteElo "2520"]
[BlackElo "2502"]
[Result "0-1"]
[Round "04"]
[TimeControl "180+2"]
[Date "2023.05.16"]
[WhiteClock "0:00:03"]
[BlackClock "0:00:02"]

1. d4 {[%clk 0:03:00]}  Nf6 {[%clk 0:02:59]} 2. c4 {[%clk 0:03:01]}  e6 {[%clk 0:03:00]} 3. g3 {[%clk 0:03:01]}  d5 {[%clk 0:03:00]} 4. Nf3 {[%clk 0:03:02]}  Nbd7 {[%clk 0:02:59]} 5. Bg2 {[%clk 0:03:01]}  dxc4 {[%clk 0:03:00]} 6. O-O {[%clk 0:03:00]}  c6 {[%clk 0:03:00]} 7. a4 {[%clk 0:02:57]}  a5 {[%clk 0:02:57]} 8. Qc2 {[%clk 0:02:56]}  b5 {[%clk 0:02:53]} 9. axb5 {[%clk 0:02:43]}  cxb5 {[%clk 0:02:53]} 10. Ne5 {[%clk 0:02:43]}  Nd5 {[%clk 0:02:41]} 11. Nc3 {[%clk 0:02:40]}  Nxe5 {[%clk 0:02:35]} 12. dxe5 {[%clk 0:02:40]}  Bb4 {[%clk 0:02:24]} 13. Nxd5 {[%clk 0:02:28]}  exd5 {[%clk 0:02:24]} 14. Rd1 {[%clk 0:02:29]}  Ra7 {[%clk 0:01:01]} 15. Bxd5 {[%clk 0:02:24]}  Qe7 {[%clk 0:01:01]} 16. Be3 {[%clk 0:02:22]}  Rd7 {[%clk 0:00:52]} 17. Bc6 {[%clk 0:02:17]}  O-O {[%clk 0:00:52]} 18. Bxd7 {[%clk 0:02:17]}  Bxd7 {[%clk 0:00:53]} 19. Qe4 {[%clk 0:02:14]}  Bh3 {[%clk 0:00:43]} 20. Qd5 {[%clk 0:02:07]}  Rb8 {[%clk 0:00:23]} 21. f4 {[%clk 0:01:51]}  h5 {[%clk 0:00:21]} 22. Kf2 {[%clk 0:01:49]}  a4 {[%clk 0:00:20]} 23. Qe4 {[%clk 0:01:42]}  Qe6 {[%clk 0:00:17]} 24. Rd5 {[%clk 0:01:31]}  c3 {[%clk 0:00:17]} 25. bxc3 {[%clk 0:01:28]}  Bxc3 {[%clk 0:00:18]} 26. Rad1 {[%clk 0:01:28]}  Ba5 {[%clk 0:00:11]} 27. Rd6 {[%clk 0:01:21]}  Qe8 {[%clk 0:00:11]} 28. f5 {[%clk 0:01:13]}  Bc7 {[%clk 0:00:11]} 29. R6d5 {[%clk 0:01:13]}  b4 {[%clk 0:00:11]} 30. Rc1 {[%clk 0:01:07]}  Bd8 {[%clk 0:00:02]} 31. Ba7 {[%clk 0:00:59]}  Ra8 {[%clk 0:00:02]} 32. Bc5 {[%clk 0:00:19]}  b3 {[%clk 0:00:02]} 33. Ba3 {[%clk 0:00:19]}  Be7 {[%clk 0:00:02]} 34. Bxe7 {[%clk 0:00:16]}  Qxe7 {[%clk 0:00:03]} 35. Rd6 {[%clk 0:00:11]}  Re8 {[%clk 0:00:02]} 36. Qxa4 {[%clk 0:00:08]}  Qxe5 {[%clk 0:00:02]} 37. Rd2 {[%clk 0:00:02]}  Qe3+ {[%clk 0:00:02]} 38. Ke1 {[%clk 0:00:03]}  Qg1# {[%clk 0:00:02]} 0-1


[Site "https://www.chess.com"]

[Event "Titled Tuesday Blitz May 16 Late 2023"]
[White "Klukin, Kirill"]
[Black "Ibarra Jerez, Jose Carlos"]
[WhiteFideId "24199273"]
[BlackFideId "2226332"]
[WhiteElo "2344"]
[BlackElo "2638"]
[Result "1-0"]
[Round "04"]
[TimeControl "180+2"]
[Date "2023.05.16"]
[WhiteClock "0:01:00"]
[BlackClock "0:00:39"]

1. d4 {[%clk 0:03:00]}  Nf6 {[%clk 0:02:59]} 2. c4 {[%clk 0:03:01]}  d6 {[%clk 0:03:00]} 3. Nc3 {[%clk 0:03:02]}  e5 {[%clk 0:03:00]} 4. Nf3 {[%clk 0:03:01]}  e4 {[%clk 0:03:00]} 5. Nd2 {[%clk 0:02:52]}  Qe7 {[%clk 0:03:00]} 6. Qc2 {[%clk 0:02:41]}  e3 {[%clk 0:02:59]} 7. fxe3 {[%clk 0:02:38]}  c5 {[%clk 0:02:59]} 8. Nf3 {[%clk 0:02:32]}  Nc6 {[%clk 0:02:58]} 9. g3 {[%clk 0:02:14]}  g6 {[%clk 0:02:55]} 10. Bg2 {[%clk 0:02:02]}  Bh6 {[%clk 0:02:44]} 11. e4 {[%clk 0:01:49]}  Bxc1 {[%clk 0:02:42]} 12. Rxc1 {[%clk 0:01:49]}  cxd4 {[%clk 0:02:32]} 13. Nd5 {[%clk 0:01:48]}  Nxd5 {[%clk 0:02:22]} 14. cxd5 {[%clk 0:01:43]}  Nd8 {[%clk 0:02:08]} 15. Nxd4 {[%clk 0:01:37]}  O-O {[%clk 0:02:07]} 16. O-O {[%clk 0:01:29]}  Bd7 {[%clk 0:02:05]} 17. Qd2 {[%clk 0:01:27]}  f6 {[%clk 0:01:48]} 18. Rc7 {[%clk 0:01:25]}  Nf7 {[%clk 0:01:39]} 19. Bh3 {[%clk 0:01:19]}  Ne5 {[%clk 0:01:25]} 20. Be6+ {[%clk 0:01:19]}  Kh8 {[%clk 0:01:24]} 21. Bxd7 {[%clk 0:01:06]}  Nxd7 {[%clk 0:01:23]} 22. Ne6 {[%clk 0:01:07]}  Rfc8 {[%clk 0:01:20]} 23. Rfc1 {[%clk 0:01:06]}  Qe8 {[%clk 0:01:09]} 24. Qh6 {[%clk 0:01:02]}  Qg8 {[%clk 0:00:41]} 25. Rxc8 {[%clk 0:01:00]}  Rxc8 {[%clk 0:00:39]} 26. Rxc8 {[%clk 0:01:00]} 1-0


[Site "https://www.chess.com"]

[Event "Titled Tuesday Blitz May 16 Late 2023"]
[White "Mekhitarian, Krikor Sevag"]
[Black "MKlose11"]
[WhiteFideId "2107660"]
[WhiteElo "2604"]
[BlackElo "2671"]
[Result "1/2-1/2"]
[Round "04"]
[TimeControl "180+2"]
[Date "2023.05.16"]
[WhiteClock "0:00:02"]
[BlackClock "0:00:05"]

1. Nf3 {[%clk 0:03:00]}  Nf6 {[%clk 0:02:59]} 2. c4 {[%clk 0:03:01]}  c5 {[%clk 0:03:00]} 3. Nc3 {[%clk 0:02:59]}  Nc6 {[%clk 0:03:00]} 4. d4 {[%clk 0:02:58]}  cxd4 {[%clk 0:02:59]} 5. Nxd4 {[%clk 0:02:59]}  d6 {[%clk 0:03:00]} 6. e4 {[%clk 0:02:58]}  g6 {[%clk 0:03:00]} 7. Be2 {[%clk 0:02:55]}  Bd7 {[%clk 0:03:00]} 8. Be3 {[%clk 0:02:55]}  Bg7 {[%clk 0:03:00]} 9. O-O {[%clk 0:02:54]}  O-O {[%clk 0:03:01]} 10. Nc2 {[%clk 0:02:43]}  a5 {[%clk 0:02:58]} 11. f4 {[%clk 0:02:36]}  Nb4 {[%clk 0:02:50]} 12. Nd4 {[%clk 0:02:27]}  Nc6 {[%clk 0:02:49]} 13. Ndb5 {[%clk 0:02:28]}  Nb4 {[%clk 0:02:37]} 14. Qd2 {[%clk 0:02:14]}  Bc6 {[%clk 0:02:35]} 15. Bf3 {[%clk 0:02:12]}  Na6 {[%clk 0:02:29]} 16. Rad1 {[%clk 0:02:08]}  Qc8 {[%clk 0:01:58]} 17. h3 {[%clk 0:01:41]}  Nd7 {[%clk 0:01:37]} 18. Qf2 {[%clk 0:01:17]}  Nac5 {[%clk 0:01:35]} 19. Rfe1 {[%clk 0:01:14]}  a4 {[%clk 0:01:22]} 20. Nd5 {[%clk 0:00:58]}  Bxd5 {[%clk 0:01:16]} 21. exd5 {[%clk 0:00:58]}  Re8 {[%clk 0:01:10]} 22. Re2 {[%clk 0:00:55]}  Qd8 {[%clk 0:01:10]} 23. Bd4 {[%clk 0:00:46]}  Bxd4 {[%clk 0:01:03]} 24. Qxd4 {[%clk 0:00:46]}  Qb6 {[%clk 0:00:54]} 25. Rde1 {[%clk 0:00:46]}  Nd3 {[%clk 0:00:51]} 26. Qxb6 {[%clk 0:00:23]}  Nxb6 {[%clk 0:00:52]} 27. Nc7 {[%clk 0:00:24]}  Nxe1 {[%clk 0:00:51]} 28. Rxe1 {[%clk 0:00:24]}  Nxc4 {[%clk 0:00:48]} 29. Nxa8 {[%clk 0:00:24]}  Rxa8 {[%clk 0:00:47]} 30. Rxe7 {[%clk 0:00:25]}  Nxb2 {[%clk 0:00:47]} 31. Rxb7 {[%clk 0:00:24]}  Nd3 {[%clk 0:00:42]} 32. Rb6 {[%clk 0:00:21]}  Rd8 {[%clk 0:00:39]} 33. g3 {[%clk 0:00:21]}  Kf8 {[%clk 0:00:36]} 34. Kf1 {[%clk 0:00:18]}  Ke7 {[%clk 0:00:33]} 35. Ke2 {[%clk 0:00:16]}  Nc5 {[%clk 0:00:32]} 36. Ke3 {[%clk 0:00:14]}  Ra8 {[%clk 0:00:27]} 37. Kd4 {[%clk 0:00:13]}  a3 {[%clk 0:00:27]} 38. Bd1 {[%clk 0:00:13]}  h5 {[%clk 0:00:24]} 39. Rb1 {[%clk 0:00:05]}  Ra6 {[%clk 0:00:22]} 40. Bc2 {[%clk 0:00:05]}  Kf6 {[%clk 0:00:20]} 41. Kc4 {[%clk 0:00:06]}  Ra7 {[%clk 0:00:19]} 42. g4 {[%clk 0:00:06]}  hxg4 {[%clk 0:00:19]} 43. hxg4 {[%clk 0:00:07]}  Re7 {[%clk 0:00:19]} 44. Rb6 {[%clk 0:00:06]}  Rd7 {[%clk 0:00:18]} 45. g5+ {[%clk 0:00:06]}  Ke7 {[%clk 0:00:18]} 46. Kb4 {[%clk 0:00:07]}  Ra7 {[%clk 0:00:18]} 47. Rb5 {[%clk 0:00:06]}  Kd7 {[%clk 0:00:17]} 48. Rb6 {[%clk 0:00:05]}  Kc7 {[%clk 0:00:17]} 49. Rc6+ {[%clk 0:00:06]}  Kd7 {[%clk 0:00:17]} 50. Kc3 {[%clk 0:00:07]}  Ke7 {[%clk 0:00:14]} 51. Rb6 {[%clk 0:00:06]}  Rc7 {[%clk 0:00:14]} 52. Kd2 {[%clk 0:00:05]}  Ra7 {[%clk 0:00:14]} 53. Rb4 {[%clk 0:00:05]}  Kd7 {[%clk 0:00:13]} 54. Rb1 {[%clk 0:00:05]}  Ke7 {[%clk 0:00:13]} 55. Rh1 {[%clk 0:00:05]}  Kd7 {[%clk 0:00:13]} 56. Rh7 {[%clk 0:00:05]}  Ke7 {[%clk 0:00:14]} 57. Bxg6 {[%clk 0:00:06]}  Kf8 {[%clk 0:00:14]} 58. Bc2 {[%clk 0:00:05]}  Rb7 {[%clk 0:00:14]} 59. Rh8+ {[%clk 0:00:06]}  Kg7 {[%clk 0:00:14]} 60. Ra8 {[%clk 0:00:07]}  Rb4 {[%clk 0:00:14]} 61. f5 {[%clk 0:00:07]}  Ne4+ {[%clk 0:00:14]} 62. Ke3 {[%clk 0:00:04]}  Nxg5 {[%clk 0:00:14]} 63. Rxa3 {[%clk 0:00:04]}  Kf6 {[%clk 0:00:14]} 64. Ra7 {[%clk 0:00:02]}  Rh4 {[%clk 0:00:14]} 65. Bb3 {[%clk 0:00:02]}  Rh3+ {[%clk 0:00:13]} 66. Kd2 {[%clk 0:00:01]}  Ne4+ {[%clk 0:00:13]} 67. Kc2 {[%clk 0:00:02]}  Ke5 {[%clk 0:00:13]} 68. Re7+ {[%clk 0:00:01]}  Kd4 {[%clk 0:00:14]} 69. Rxf7 {[%clk 0:00:02]}  Rh2+ {[%clk 0:00:15]} 70. Kd1 {[%clk 0:00:02]}  Nc3+ {[%clk 0:00:14]} 71. Ke1 {[%clk 0:00:02]}  Kd3 {[%clk 0:00:15]} 72. Kf1 {[%clk 0:00:03]}  Ke3 {[%clk 0:00:15]} 73. Kg1 {[%clk 0:00:04]}  Rb2 {[%clk 0:00:15]} 74. Re7+ {[%clk 0:00:04]}  Kf3 {[%clk 0:00:15]} 75. Kh1 {[%clk 0:00:04]}  Ne4 {[%clk 0:00:14]} 76. Rxe4 {[%clk 0:00:03]}  Kxe4 {[%clk 0:00:14]} 77. Kg1 {[%clk 0:00:01]}  Kxf5 {[%clk 0:00:14]} 78. Kf1 {[%clk 0:00:02]}  Ke4 {[%clk 0:00:15]} 79. Ke1 {[%clk 0:00:03]}  Kd3 {[%clk 0:00:14]} 80. Kf1 {[%clk 0:00:03]}  Kc3 {[%clk 0:00:13]} 81. Ke1 {[%clk 0:00:03]}  Rd2 {[%clk 0:00:13]} 82. Kf1 {[%clk 0:00:03]}  Rb2 {[%clk 0:00:13]} 83. Ke1 {[%clk 0:00:04]}  Kd3 {[%clk 0:00:14]} 84. Kf1 {[%clk 0:00:04]}  Ke3 {[%clk 0:00:14]} 85. Bc4 {[%clk 0:00:04]}  Kd2 {[%clk 0:00:08]} 86. Bb3 {[%clk 0:00:02]}  Kc3 {[%clk 0:00:05]} 1/2-1/2


[Site "https://www.chess.com"]

[Event "Titled Tuesday Blitz May 16 Late 2023"]
[White "Donchenko, Alexander"]
[Black "Volkov, Maksim"]
[WhiteFideId "24603295"]
[BlackFideId "54123070"]
[WhiteElo "2554"]
[BlackElo "2297"]
[Result "0-1"]
[Round "04"]
[TimeControl "180+2"]
[Date "2023.05.16"]
[WhiteClock "0:00:10"]
[BlackClock "0:00:24"]

1. e4 {[%clk 0:03:00]}  e6 {[%clk 0:02:59]} 2. d4 {[%clk 0:03:00]}  d5 {[%clk 0:03:00]} 3. Nc3 {[%clk 0:03:00]}  Bb4 {[%clk 0:03:00]} 4. e5 {[%clk 0:03:00]}  c5 {[%clk 0:03:00]} 5. a3 {[%clk 0:03:00]}  Bxc3+ {[%clk 0:03:00]} 6. bxc3 {[%clk 0:03:00]}  Qa5 {[%clk 0:03:01]} 7. Bd2 {[%clk 0:02:59]}  Qa4 {[%clk 0:03:02]} 8. Qg4 {[%clk 0:02:55]}  Kf8 {[%clk 0:03:02]} 9. Qd1 {[%clk 0:02:51]}  Nc6 {[%clk 0:03:01]} 10. Nf3 {[%clk 0:02:49]}  Nge7 {[%clk 0:03:01]} 11. dxc5 {[%clk 0:02:44]}  Qe4+ {[%clk 0:02:56]} 12. Be2 {[%clk 0:02:42]}  Nxe5 {[%clk 0:02:56]} 13. O-O {[%clk 0:02:42]}  Nxf3+ {[%clk 0:02:47]} 14. Bxf3 {[%clk 0:02:42]}  Qa4 {[%clk 0:02:46]} 15. Bf4 {[%clk 0:02:36]}  Qxf4 {[%clk 0:02:27]} 16. Rb1 {[%clk 0:02:34]}  f6 {[%clk 0:02:20]} 17. Re1 {[%clk 0:02:33]}  Kf7 {[%clk 0:02:19]} 18. g3 {[%clk 0:02:33]}  Qc7 {[%clk 0:02:19]} 19. Qd4 {[%clk 0:02:32]}  Rd8 {[%clk 0:02:17]} 20. c4 {[%clk 0:02:29]}  e5 {[%clk 0:01:59]} 21. Qh4 {[%clk 0:02:29]}  e4 {[%clk 0:01:33]} 22. Bh5+ {[%clk 0:02:23]}  Kg8 {[%clk 0:01:27]} 23. cxd5 {[%clk 0:02:21]}  Rxd5 {[%clk 0:01:18]} 24. Be2 {[%clk 0:02:14]}  Rxc5 {[%clk 0:01:15]} 25. Qxe4 {[%clk 0:02:14]}  Bf5 {[%clk 0:01:14]} 26. Qf3 {[%clk 0:02:08]}  Nc6 {[%clk 0:01:07]} 27. Qe3 {[%clk 0:01:17]}  Re5 {[%clk 0:01:05]} 28. Qf4 {[%clk 0:01:13]}  Rae8 {[%clk 0:01:02]} 29. Kg2 {[%clk 0:01:06]}  Kh8 {[%clk 0:00:57]} 30. Bf3 {[%clk 0:01:00]}  g5 {[%clk 0:00:51]} 31. Rxe5 {[%clk 0:00:45]}  Rxe5 {[%clk 0:00:51]} 32. Qc4 {[%clk 0:00:42]}  Kg7 {[%clk 0:00:48]} 33. h4 {[%clk 0:00:38]}  Be6 {[%clk 0:00:48]} 34. Qa4 {[%clk 0:00:37]}  gxh4 {[%clk 0:00:42]} 35. Qxh4 {[%clk 0:00:36]}  Bf5 {[%clk 0:00:39]} 36. Rh1 {[%clk 0:00:35]}  Qd6 {[%clk 0:00:36]} 37. Qh6+ {[%clk 0:00:33]}  Kg8 {[%clk 0:00:35]} 38. Rh5 {[%clk 0:00:30]}  Bg6 {[%clk 0:00:34]} 39. Rh4 {[%clk 0:00:28]}  Nd4 {[%clk 0:00:33]} 40. Bxb7 {[%clk 0:00:27]}  Nf5 {[%clk 0:00:32]} 41. Qf4 {[%clk 0:00:23]}  Nxh4+ {[%clk 0:00:32]} 42. Qxh4 {[%clk 0:00:24]}  Qe7 {[%clk 0:00:29]} 43. Ba6 {[%clk 0:00:18]}  Rc5 {[%clk 0:00:26]} 44. Bb7 {[%clk 0:00:10]}  Qxb7+ {[%clk 0:00:24]} 0-1


[Site "https://www.chess.com"]

[Event "Titled Tuesday Blitz May 16 Late 2023"]
[White "Marek, Matyas"]
[Black "Xiong, Jeffery"]
[WhiteFideId "335398"]
[BlackFideId "2047640"]
[WhiteElo "2279"]
[BlackElo "2726"]
[Result "0-1"]
[Round "04"]
[TimeControl "180+2"]
[Date "2023.05.16"]
[WhiteClock "0:00:12"]
[BlackClock "0:01:36"]

1. Nf3 {[%clk 0:03:00]}  d5 {[%clk 0:02:59]} 2. g3 {[%clk 0:03:01]}  Nd7 {[%clk 0:02:58]} 3. Bg2 {[%clk 0:03:02]}  e5 {[%clk 0:02:58]} 4. d3 {[%clk 0:03:02]}  Bd6 {[%clk 0:02:58]} 5. O-O {[%clk 0:03:03]}  Ne7 {[%clk 0:02:59]} 6. e4 {[%clk 0:03:03]}  d4 {[%clk 0:02:58]} 7. Nbd2 {[%clk 0:03:03]}  c5 {[%clk 0:02:58]} 8. Nc4 {[%clk 0:03:04]}  Bc7 {[%clk 0:02:59]} 9. a4 {[%clk 0:03:04]}  Nc6 {[%clk 0:02:59]} 10. c3 {[%clk 0:03:03]}  O-O {[%clk 0:02:59]} 11. cxd4 {[%clk 0:03:04]}  cxd4 {[%clk 0:02:55]} 12. Bd2 {[%clk 0:03:04]}  a5 {[%clk 0:02:55]} 13. Qe2 {[%clk 0:02:54]}  Nc5 {[%clk 0:02:55]} 14. Nh4 {[%clk 0:02:46]}  Be6 {[%clk 0:02:54]} 15. Nf5 {[%clk 0:02:40]}  Bxc4 {[%clk 0:02:54]} 16. dxc4 {[%clk 0:02:41]}  g6 {[%clk 0:02:50]} 17. Nh6+ {[%clk 0:02:41]}  Kg7 {[%clk 0:02:50]} 18. h4 {[%clk 0:02:32]}  Nb3 {[%clk 0:02:42]} 19. Ra3 {[%clk 0:02:22]}  Nxd2 {[%clk 0:02:42]} 20. Qxd2 {[%clk 0:02:23]}  Bd6 {[%clk 0:02:42]} 21. Rd3 {[%clk 0:02:16]}  Nb4 {[%clk 0:02:33]} 22. Rf3 {[%clk 0:02:14]}  Na6 {[%clk 0:02:33]} 23. Ng4 {[%clk 0:02:07]}  f5 {[%clk 0:02:26]} 24. exf5 {[%clk 0:01:29]}  gxf5 {[%clk 0:02:27]} 25. Qh6+ {[%clk 0:01:28]}  Kh8 {[%clk 0:02:27]} 26. Nh2 {[%clk 0:01:26]}  Nc5 {[%clk 0:02:25]} 27. Bh3 {[%clk 0:01:13]}  f4 {[%clk 0:02:24]} 28. Ng4 {[%clk 0:01:03]}  e4 {[%clk 0:02:24]} 29. Ra3 {[%clk 0:01:02]}  Ra6 {[%clk 0:02:22]} 30. Qh5 {[%clk 0:01:00]}  d3 {[%clk 0:02:12]} 31. Qd5 {[%clk 0:00:57]}  Qe7 {[%clk 0:02:09]} 32. Nh6 {[%clk 0:00:48]}  Qf6 {[%clk 0:01:49]} 33. Nf5 {[%clk 0:00:49]}  Qe5 {[%clk 0:01:47]} 34. gxf4 {[%clk 0:00:27]}  Qxf4 {[%clk 0:01:44]} 35. Nxd6 {[%clk 0:00:25]}  Qxd6 {[%clk 0:01:44]} 36. Qxd6 {[%clk 0:00:20]}  Rxd6 {[%clk 0:01:44]} 37. Bg2 {[%clk 0:00:20]}  Rf4 {[%clk 0:01:38]} 38. Re1 {[%clk 0:00:16]}  Rg6 {[%clk 0:01:37]} 39. Kf1 {[%clk 0:00:12]}  Rfg4 {[%clk 0:01:36]} 0-1


[Site "https://www.chess.com"]

[Event "Titled Tuesday Blitz May 16 Late 2023"]
[White "Iturrizaga Bonelli, Eduardo"]
[Black "Khandelwal, Ankush"]
[WhiteFideId "3901211"]
[BlackFideId "413470"]
[WhiteElo "2637"]
[BlackElo "2263"]
[Result "1-0"]
[Round "04"]
[TimeControl "180+2"]
[Date "2023.05.16"]
[WhiteClock "0:00:41"]
[BlackClock "0:00:00"]

1. c4 {[%clk 0:02:59]}  Nf6 {[%clk 0:02:59]} 2. g3 {[%clk 0:02:59]}  g6 {[%clk 0:02:57]} 3. Bg2 {[%clk 0:02:59]}  Bg7 {[%clk 0:02:57]} 4. Nc3 {[%clk 0:03:00]}  O-O {[%clk 0:02:56]} 5. d4 {[%clk 0:03:00]}  d6 {[%clk 0:02:52]} 6. e4 {[%clk 0:02:57]}  c5 {[%clk 0:02:44]} 7. Nge2 {[%clk 0:02:56]}  Nc6 {[%clk 0:02:38]} 8. d5 {[%clk 0:02:49]}  Na5 {[%clk 0:02:38]} 9. b3 {[%clk 0:02:49]}  a6 {[%clk 0:02:37]} 10. a4 {[%clk 0:02:46]}  Bd7 {[%clk 0:02:26]} 11. O-O {[%clk 0:02:36]}  b5 {[%clk 0:02:17]} 12. axb5 {[%clk 0:02:36]}  axb5 {[%clk 0:02:17]} 13. cxb5 {[%clk 0:02:37]}  Qb6 {[%clk 0:02:10]} 14. Be3 {[%clk 0:02:04]}  Bxb5 {[%clk 0:02:03]} 15. b4 {[%clk 0:02:03]}  Bxe2 {[%clk 0:01:29]} 16. Nxe2 {[%clk 0:01:35]}  Qxb4 {[%clk 0:01:26]} 17. Bd2 {[%clk 0:01:35]}  Qb5 {[%clk 0:01:00]} 18. e5 {[%clk 0:01:28]}  Ng4 {[%clk 0:00:45]} 19. Rb1 {[%clk 0:01:28]}  Qc4 {[%clk 0:00:42]} 20. e6 {[%clk 0:01:11]}  f5 {[%clk 0:00:16]} 21. Nf4 {[%clk 0:00:56]}  Bd4 {[%clk 0:00:14]} 22. h3 {[%clk 0:00:54]}  Ne5 {[%clk 0:00:08]} 23. Kh2 {[%clk 0:00:54]}  g5 {[%clk 0:00:04]} 24. Ne2 {[%clk 0:00:51]}  g4 {[%clk 0:00:04]} 25. h4 {[%clk 0:00:45]}  Nf3+ {[%clk 0:00:02]} 26. Bxf3 {[%clk 0:00:45]}  gxf3 {[%clk 0:00:03]} 27. Nf4 {[%clk 0:00:45]}  Be5 {[%clk 0:00:02]} 28. Qxf3 {[%clk 0:00:45]}  Kh8 {[%clk 0:00:02]} 29. Rfe1 {[%clk 0:00:42]}  Rg8 {[%clk 0:00:02]} 30. Rxe5 {[%clk 0:00:41]}  dxe5 {[%clk 0:00:00]} 31. Bc3 {[%clk 0:00:41]} 1-0


[Site "https://www.chess.com"]